bitfinex-derivatives/quotes_SOLF0:USTF0_20260308
["timestamp","ask_amount","ask_price","bid_price","bid_amount"]
[1772975976543,11.24861036,81.891,81.786,6.91871436]
[1772975976745,11.24861036,81.879,81.786,6.91871436]
[1772975976945,9.64571802,81.878,81.786,6.91871436]
[1772975977139,9.64571802,81.877,81.786,6.91871436]
[1772975977335,11.24861036,81.869,81.788,6.91871436]
[1772975977536,11.24861036,81.865,81.788,6.91871436]
[1772975977839,9.64571802,81.864,81.788,6.91871436]
[1772975978035,9.64571802,81.863,81.788,6.91871436]
[1772975978240,9.64571802,81.862,81.788,6.91871436]
[1772975978446,9.64571802,81.861,81.788,6.91871436]
[1772975978647,9.64571802,81.86,81.788,6.91871436]
[1772975978847,10.997,81.844,81.788,6.91871436]
[1772975982349,10.998,81.836,81.788,6.91871436]
[1772975984851,10.997,81.844,81.788,6.91871436]
[1772975985557,10.997,81.844,81.791,6.86321378]
[1772975985953,10.997,81.844,81.75,62.0]
[1772975985954,10.997,81.844,81.794,6.86321378]
[1772975987155,10.996,81.852,81.803,6.86257281]
[1772975987355,11.24861036,81.886,81.803,6.86257281]
[1772975987556,9.63183061,81.885,81.803,6.86257281]
[1772975987757,21.977,81.905,81.803,6.86257281]
[1772975987758,9.63183061,81.884,81.803,6.86257281]
[1772975988061,9.63183061,81.883,81.803,6.86257281]
[1772975988258,10.995,81.853,81.805,6.87063443]
[1772975995472,10.995,81.853,81.807,6.86966124]
[1772975998370,11.24861036,81.882,81.796,6.86711025]
[1772975998570,11.24861036,81.869,81.796,6.86711025]
[1772975998776,9.63613466,81.868,81.796,6.86711025]
[1772975998977,9.63613466,81.867,81.796,6.86711025]
[1772975999178,9.63613466,81.866,81.796,6.86711025]
[1772975999366,21.987,81.867,81.796,6.86711025]
[1772975999367,9.63613466,81.865,81.796,6.86711025]
[1772975999568,9.63613466,81.864,81.796,6.86711025]
[1772975999768,21.987,81.867,81.796,6.86711025]
[1772975999769,9.63613466,81.863,81.796,6.86711025]
[1772975999973,9.63613466,81.862,81.796,6.86711025]
[1772976000278,9.63613466,81.861,81.796,6.86711025]
[1772976000482,9.63613466,81.86,81.796,6.86711025]
[1772976000780,10.998,81.831,81.796,6.86711025]
[1772976001686,10.997,81.84,81.796,6.86711025]
[1772976001976,14.8183816,81.881,81.796,6.86711025]
[1772976001977,11.24861036,81.88,81.796,6.86711025]
[1772976002182,9.63167859,81.879,81.796,6.86711025]
[1772976002381,10.996,81.85,81.796,6.86711025]
[1772976002882,10.996,81.85,81.793,11.003]
[1772976002883,10.995,81.858,81.798,6.85489735]
[1772976003778,10.995,81.858,81.801,6.85483696]
[1772976004980,21.982,81.887,81.803,6.8525109]
[1772976005177,222.36855827,82.355,81.803,6.8525109]
[1772976005178,10.993,81.868,81.803,6.8525109]
[1772976005384,11.24861036,81.903,81.823,10.999]
[1772976005683,11.24861036,81.907,81.824,6.8525109]
[1772976006073,11.24861036,81.906,81.824,6.8525109]
[1772976006781,10.992,81.88,81.824,6.8525109]
[1772976007787,10.992,81.88,81.826,6.8477363]
[1772976009989,10.99,81.891,81.829,6.85334969]
[1772976010787,10.99,81.891,81.839,6.85633912]
[1772976012188,10.989,81.901,81.843,6.85633912]
[1772976012792,10.989,81.901,81.846,6.8565856]
[1772976013190,10.99,81.894,81.846,6.8565856]
[1772976017295,10.992,81.878,81.832,6.85503606]
[1772976019792,10.992,81.878,81.834,6.895502]
[1772976020692,10.991,81.886,81.836,6.89578709]
[1772976022903,10.991,81.886,81.839,10.997]
[1772976023200,10.991,81.886,81.84,6.91710577]
[1772976024296,10.99,81.894,81.843,6.92709713]
[1772976025799,10.99,81.894,81.849,6.92709713]
[1772976029099,12.11791088,81.92,81.849,6.92709713]
[1772976029304,12.11791088,81.92,81.806,6.92880387]
[1772976029600,10.992,81.879,81.832,10.998]
[1772976029806,10.992,81.879,81.833,6.92880387]
[1772976030401,10.992,81.879,81.835,6.92833797]
[1772976031307,10.992,81.879,81.805,22.004]
[1772976031308,10.992,81.879,81.837,6.92833797]
[1772976032403,12.11791088,81.92,81.837,6.92833797]
[1772976032606,9.60253052,81.903,81.814,6.90626743]
[1772976032906,2.12593086,81.899,81.814,6.90626743]
[1772976033105,9.60253052,81.898,81.814,6.90626743]
[1772976033308,9.60253052,81.897,81.814,6.90626743]
[1772976033507,9.60253052,81.896,81.814,6.90626743]
[1772976033807,9.60253052,81.895,81.814,6.90626743]
[1772976033999,9.60253052,81.894,81.814,6.90626743]
[1772976034203,9.60253052,81.893,81.814,6.90626743]
[1772976034397,9.60253052,81.892,81.814,6.90626743]
[1772976034606,9.60253052,81.891,81.814,6.90626743]
[1772976034805,10.995,81.86,81.814,6.90626743]
[1772976035404,9.60253052,81.887,81.803,6.93319253]
[1772976035610,9.60253052,81.886,81.803,6.93319253]
[1772976035809,2.12593086,81.899,81.803,6.93319253]
[1772976035810,9.60253052,81.885,81.803,6.93319253]
[1772976036006,2.12593086,81.899,81.803,6.93319253]
[1772976036007,9.60253052,81.884,81.803,6.93319253]
[1772976036206,2.12593086,81.899,81.803,6.93319253]
[1772976036402,9.6086984,81.898,81.803,6.93319253]
[1772976036711,9.6086984,81.897,81.803,6.93319253]
[1772976036907,10.994,81.861,81.805,6.91314389]
[1772976037510,10.995,81.854,81.805,6.91314389]
[1772976043812,10.995,81.854,81.809,6.89744753]
[1772976044913,10.995,81.854,81.811,6.89977831]
[1772976048513,10.994,81.862,81.815,6.89736433]
[1772976049214,10.995,81.856,81.815,6.89736433]
[1772976053415,10.994,81.866,81.819,6.90952284]
[1772976053621,9.6205349,81.886,81.819,6.90952284]
[1772976053819,9.6205349,81.885,81.819,6.90952284]
[1772976054022,9.6205349,81.884,81.819,6.90952284]
[1772976054219,9.6205349,81.883,81.819,6.90952284]
[1772976054521,2.12593086,81.899,81.819,6.90952284]
[1772976054821,9.61710943,81.898,81.819,6.90952284]
[1772976055022,9.61710943,81.897,81.819,6.90952284]
[1772976055321,9.61710943,81.896,81.819,6.90952284]
[1772976055525,9.61710943,81.895,81.819,6.90952284]
[1772976055819,9.61710943,81.894,81.819,6.90952284]
[1772976056018,9.61710943,81.893,81.819,6.90952284]
[1772976056218,9.61710943,81.892,81.819,6.90952284]
[1772976056418,9.61710943,81.891,81.819,6.90952284]
[1772976056618,9.61710943,81.89,81.819,6.90952284]
[1772976056812,9.61710943,81.889,81.819,6.90952284]
[1772976057013,9.61710943,81.888,81.819,6.90952284]
[1772976057214,9.61710943,81.887,81.819,6.90952284]
[1772976057417,9.61710943,81.886,81.819,6.90952284]
[1772976057618,9.61710943,81.885,81.819,6.90952284]
[1772976057820,10.994,81.863,81.819,6.90952284]
[1772976058223,10.994,81.863,81.82,6.93092293]
[1772976060721,2.12593086,81.899,81.764,34.245]
[1772976060722,10.993,81.872,81.823,6.9437632]
[1772976061921,10.994,81.865,81.823,6.9437632]
[1772976062925,10.993,81.873,81.825,6.86530503]
[1772976063228,33.16901131,81.921,81.825,6.86530503]
[1772976063433,9.62808121,81.903,81.825,6.86530503]
[1772976063729,11.19601131,81.925,81.843,6.86879862]
[1772976064830,10.99,81.897,81.852,6.85778848]
[1772976067430,10.988,81.905,81.854,6.87122602]
[1772976068835,10.987,81.913,81.86,6.81389746]
[1772976069235,10.988,81.906,81.862,6.81389746]
[1772976077442,10.989,81.899,81.862,6.81389746]
[1772976077942,10.988,81.907,81.862,6.81389746]
[1772976079837,9.62645396,81.936,81.865,6.84048421]
[1772976080045,9.62645396,81.935,81.865,6.84048421]
[1772976080239,9.62645396,81.934,81.865,6.84048421]
[1772976080439,21.967,81.943,81.865,6.84048421]
[1772976080440,10.989,81.9,81.865,6.84048421]
[1772976086642,10.99,81.892,81.856,6.84127194]
[1772976086846,11.19601131,81.927,81.805,6.84127194]
[1772976087146,11.19601131,81.922,81.805,6.84127194]
[1772976087349,9.62546584,81.921,81.805,6.84127194]
[1772976087548,21.974,81.918,81.837,6.84225577]
[1772976087747,9.62546584,81.917,81.837,6.84225577]
[1772976087948,9.62546584,81.916,81.837,6.84225577]
[1772976088136,9.62546584,81.915,81.837,6.84225577]
[1772976088338,10.992,81.881,81.842,6.84225577]
[1772976089948,10.991,81.889,81.842,6.84225577]
[1772976090447,10.991,81.882,81.842,6.84225577]
[1772976093546,10.993,81.869,81.828,6.84100466]
[1772976094241,10.992,81.877,81.828,6.84100466]
[1772976095746,10.992,81.877,81.829,10.998]
[1772976096049,10.992,81.877,81.83,6.83978847]
[1772976099540,10.992,81.877,81.829,10.998]
[1772976099541,10.992,81.877,81.832,6.85469041]
[1772976099946,11.19601131,81.913,81.788,6.85469041]
[1772976100250,11.19601131,81.902,81.796,6.85469041]
[1772976100445,9.62581915,81.901,81.796,6.85469041]
[1772976100645,9.62581915,81.9,81.796,6.85469041]
[1772976100847,21.982,81.889,81.798,6.85826809]
[1772976101047,9.62581915,81.888,81.798,6.85826809]
[1772976101243,9.62581915,81.887,81.798,6.85826809]
[1772976101447,9.62581915,81.886,81.798,6.85826809]
[1772976101651,9.62581915,81.885,81.798,6.85826809]
[1772976101949,9.62581915,81.884,81.798,6.85826809]
[1772976102151,9.62581915,81.883,81.798,6.85826809]
[1772976102350,9.62581915,81.882,81.798,6.85826809]
[1772976102551,9.62581915,81.881,81.8,6.87669046]
[1772976102748,9.62581915,81.88,81.8,6.87669046]
[1772976102947,9.62581915,81.879,81.8,6.87669046]
[1772976103147,9.62581915,81.878,81.8,6.87669046]
[1772976103453,10.996,81.849,81.802,6.87756004]
[1772976105853,10.995,81.858,81.807,6.90277579]
[1772976109356,10.994,81.867,81.813,6.91143996]
[1772976110957,10.994,81.867,81.778,12.22]
[1772976110958,10.994,81.867,81.816,6.93254514]
[1772976112759,10.994,81.867,81.82,6.93045173]
[1772976113555,10.995,81.86,81.82,6.93045173]
[1772976116360,935.54175344,81.899,81.822,6.93325012]
[1772976116361,10.994,81.867,81.822,6.93325012]
[1772976119359,10.994,81.861,81.822,6.93325012]
[1772976123966,10.993,81.868,81.822,6.93325012]
[1772976124167,9.6188423,81.891,81.822,6.93325012]
[1772976124466,9.6188423,81.89,81.822,6.93325012]
[1772976124662,21.979,81.898,81.822,6.93325012]
[1772976124863,9.62043094,81.897,81.822,6.93325012]
[1772976125066,9.62043094,81.896,81.822,6.93325012]
[1772976125368,9.62043094,81.895,81.822,6.93325012]
[1772976125667,9.62043094,81.894,81.822,6.93325012]
[1772976125867,10.994,81.862,81.822,6.93325012]
[1772976126064,9.62043094,81.892,81.822,6.93325012]
[1772976126369,9.62043094,81.891,81.822,6.93325012]
[1772976126669,9.62043094,81.89,81.822,6.93325012]
[1772976126867,9.62043094,81.889,81.822,6.93325012]
[1772976127069,9.62043094,81.888,81.822,6.93325012]
[1772976127268,21.979,81.898,81.822,6.93325012]
[1772976127269,9.62043094,81.887,81.822,6.93325012]
[1772976127470,21.979,81.898,81.822,6.93325012]
[1772976127770,9.63196067,81.897,81.822,6.93325012]
[1772976127970,9.63196067,81.896,81.822,6.93325012]
[1772976128269,21.979,81.898,81.822,6.93325012]
[1772976128270,9.63196067,81.895,81.822,6.93325012]
[1772976128462,21.979,81.898,81.822,6.93325012]
[1772976128463,9.63196067,81.894,81.822,6.93325012]
[1772976128660,9.63196067,81.893,81.822,6.93325012]
[1772976128860,10.994,81.862,81.822,6.93325012]
[1772976129768,935.54175344,81.899,81.824,6.9720002]
[1772976130461,935.54175344,81.899,81.845,6.97554324]
[1772976131370,935.54175344,81.899,81.85,6.97554324]
[1772976132073,10.99,81.896,81.85,6.97554324]
[1772976132270,935.54175344,81.899,81.853,6.97629054]
[1772976132974,935.54175344,81.899,81.837,6.98901106]
[1772976133772,935.54175344,81.899,81.838,6.98976317]
[1772976134373,10.991,81.889,81.838,6.98976317]
[1772976135772,10.991,81.889,81.839,7.01282939]
[1772976136776,10.991,81.889,81.841,7.01386371]
[1772976139282,10.989,81.898,81.848,7.01617594]
[1772976140780,10.989,81.898,81.853,6.99154279]
[1772976142283,935.54175344,81.899,81.854,10.995]
[1772976142483,935.54175344,81.899,81.855,6.99476252]
[1772976143479,935.54175344,81.899,81.858,6.99543374]
[1772976145487,935.54175344,81.899,81.86,6.997118]
[1772976150698,935.54175344,81.899,81.865,7.02370839]
[1772976152903,935.54175344,81.899,81.852,7.02514306]
[1772976153504,10.989,81.898,81.842,10.997]
[1772976153803,10.989,81.898,81.842,7.02663638]
[1772976154898,10.989,81.898,81.849,10.996]
[1772976161107,10.989,81.898,81.842,7.02663638]
[1772976162811,10.989,81.898,81.844,10.997]
[1772976163009,10.989,81.898,81.844,18.03078785]
[1772976163811,10.989,81.898,81.846,10.996]
[1772976164011,10.989,81.898,81.846,18.03033946]
[1772976165708,10.992,81.882,81.826,18.03857154]
[1772976165912,935.54175344,81.899,81.827,7.03957154]
[1772976166107,9.59703505,81.898,81.827,7.03957154]
[1772976166312,9.59703505,81.897,81.827,7.03957154]
[1772976166608,9.59703505,81.896,81.827,7.03957154]
[1772976166813,10.99,81.891,81.827,7.03957154]
[1772976168309,935.54175344,81.899,81.796,207.19946872]
[1772976168310,935.54175344,81.899,81.829,7.02721437]
[1772976169914,935.54175344,81.899,81.842,7.01504382]
[1772976171106,935.54175344,81.899,81.843,10.997]
[1772976171313,935.54175344,81.899,81.844,7.03845335]
[1772976172212,935.54175344,81.899,81.848,7.03895233]
[1772976177822,935.54175344,81.899,81.8,7.06813368]
[1772976178721,10.992,81.881,81.831,7.06871349]
[1772976179825,10.993,81.874,81.831,7.06871349]
[1772976180415,10.994,81.867,81.815,7.0728487]
[1772976180618,935.54175344,81.899,81.815,7.0728487]
[1772976180821,11.19601131,81.892,81.815,7.0728487]
[1772976181018,9.60331145,81.891,81.815,7.0728487]
[1772976181224,10.995,81.853,81.803,7.0728487]
[1772976181427,11.19601131,81.889,81.803,7.0728487]
[1772976181721,9.59310511,81.888,81.803,7.0728487]
[1772976181923,10.996,81.848,81.803,7.0728487]
[1772976182519,10.995,81.857,81.803,7.0728487]
[1772976184223,10.996,81.849,81.803,7.0728487]
[1772976185025,9.57966716,81.889,81.803,7.0728487]
[1772976185319,9.57966716,81.888,81.803,7.0728487]
[1772976185525,9.57966716,81.887,81.803,7.0728487]
[1772976185727,10.994,81.866,81.812,7.04779427]
[1772976186319,10.993,81.874,81.814,7.04779427]
[1772976187523,935.54175344,81.899,81.814,7.04779427]
[1772976187724,9.62734601,81.898,81.814,7.04779427]
[1772976187923,9.62734601,81.897,81.814,7.04779427]
[1772976188124,9.62734601,81.896,81.814,7.04779427]
[1772976188422,10.995,81.86,81.804,11.002]
[1772976188622,10.995,81.86,81.805,7.08262334]
[1772976189328,10.995,81.853,81.805,7.08262334]
[1772976191230,10.996,81.846,81.805,7.08262334]
[1772976192330,9.62734601,81.878,81.805,7.08262334]
[1772976192521,9.62734601,81.877,81.805,7.08262334]
[1772976192724,9.62734601,81.876,81.805,7.08262334]
[1772976192925,9.62734601,81.875,81.805,7.08262334]
[1772976193126,9.62734601,81.874,81.805,7.08262334]
[1772976193331,9.62734601,81.873,81.805,7.08262334]
[1772976193526,9.62734601,81.872,81.805,7.08262334]
[1772976193727,9.62734601,81.871,81.805,7.08262334]
[1772976193921,11.19601131,81.886,81.805,7.08262334]
[1772976193922,10.997,81.84,81.805,7.08262334]
[1772976195027,10.998,81.832,81.805,7.08262334]
[1772976196130,10.997,81.839,81.805,7.08262334]
[1772976197229,21.985,81.876,81.805,7.08262334]
[1772976197730,11.19601131,81.898,81.797,7.10953484]
[1772976197925,11.19601131,81.882,81.786,7.10953484]
[1772976198131,200.81205434,81.931,81.774,7.10953484]
[1772976198132,11.19601131,81.878,81.774,7.10953484]
[1772976198332,11.19601131,81.872,81.774,7.10953484]
[1772976198532,9.6184686,81.871,81.774,7.10953484]
[1772976198826,11.002,81.807,81.774,7.10953484]
[1772976199226,9.6184686,81.857,81.759,7.07255366]
[1772976199428,9.6184686,81.856,81.759,7.07255366]
[1772976199624,9.6184686,81.855,81.759,7.07255366]
[1772976199832,9.6184686,81.854,81.759,7.07255366]
[1772976200028,9.6184686,81.853,81.759,7.07255366]
[1772976200228,21.993,81.847,81.759,7.07255366]
[1772976200428,9.6184686,81.846,81.759,7.07255366]
[1772976200634,9.6184686,81.845,81.759,7.07255366]
[1772976200834,9.6184686,81.844,81.759,7.07255366]
[1772976201030,11.002,81.808,81.759,7.07255366]
[1772976201929,10.998,81.833,81.759,7.07255366]
[1772976202124,21.987,81.871,81.759,7.07255366]
[1772976202125,9.59514328,81.868,81.759,7.07255366]
[1772976202435,20.78745238,81.867,81.759,7.07255366]
[1772976202633,31.58314328,81.866,81.761,7.01669611]
[1772976202838,9.59514328,81.865,81.761,7.01669611]
[1772976203029,9.59514328,81.864,81.761,7.01669611]
[1772976203336,9.59514328,81.863,81.761,7.01669611]
[1772976203636,9.59514328,81.862,81.761,7.01669611]
[1772976203934,10.999,81.828,81.773,7.01614189]
[1772976204824,11.0,81.821,81.773,7.01614189]
[1772976205030,9.59095064,81.862,81.773,7.01614189]
[1772976205331,9.59095064,81.861,81.773,7.01614189]
[1772976205533,9.59095064,81.86,81.773,7.01614189]
[1772976205733,9.59095064,81.859,81.773,7.01614189]
[1772976205932,11.001,81.813,81.773,7.01614189]
[1772976206930,10.999,81.823,81.773,7.01614189]
[1772976208835,10.999,81.823,81.775,7.09243344]
[1772976214935,10.999,81.823,81.777,7.07858551]
[1772976215834,10.999,81.823,81.781,7.07803053]
[1772976224544,10.998,81.831,81.785,6.93378663]
[1772976225045,9.63052583,81.87,81.785,6.93378663]
[1772976225349,10.997,81.839,81.787,6.93378663]
[1772976225844,10.999,81.825,81.787,6.93378663]
[1772976228451,11.001,81.811,81.776,6.92979553]
[1772976229739,20.81568465,81.85,81.742,6.92945783]
[1772976229945,11.18468866,81.842,81.742,6.92945783]
[1772976230148,11.18468866,81.831,81.742,6.92945783]
[1772976230347,11.005,81.782,81.742,6.92945783]
[1772976230848,11.005,81.782,81.702,654.28717355]
[1772976230849,12.42987541,81.795,81.728,7.02031842]
[1772976231044,9.62330644,81.794,81.728,7.02031842]
[1772976231244,22.001,81.817,81.728,7.02031842]
[1772976231245,11.18468866,81.813,81.728,7.02031842]
[1772976231446,9.61726501,81.812,81.728,7.02031842]
[1772976231750,9.61726501,81.811,81.728,7.02031842]
[1772976231949,9.61726501,81.81,81.728,7.02031842]
[1772976232150,9.61726501,81.809,81.728,7.02031842]
[1772976232351,9.61726501,81.808,81.728,7.02031842]
[1772976232547,9.61726501,81.807,81.728,7.02031842]
[1772976232749,11.005,81.779,81.728,7.02031842]
[1772976235657,11.006,81.771,81.728,7.02031842]
[1772976239558,9.59761588,81.811,81.712,6.83030715]
[1772976239855,9.59761588,81.81,81.712,6.83030715]
[1772976240055,9.59761588,81.809,81.712,6.83030715]
[1772976240250,9.59761588,81.808,81.712,6.83030715]
[1772976240454,9.59761588,81.807,81.712,6.83030715]
[1772976240651,9.59761588,81.806,81.712,6.83030715]
[1772976240854,11.008,81.763,81.712,6.83030715]
[1772976241158,11.18468866,81.797,81.703,6.83008885]
[1772976241355,22.007,81.793,81.703,6.83008885]
[1772976241657,9.59761588,81.792,81.703,6.83008885]
[1772976241958,12.37471274,81.812,81.703,6.83008885]
[1772976241959,31.60561588,81.791,81.703,6.83008885]
[1772976242157,9.59761588,81.79,81.703,6.83008885]
[1772976242351,9.59761588,81.789,81.703,6.83008885]
[1772976242658,12.37471274,81.812,81.703,6.83008885]
[1772976242659,9.59761588,81.788,81.703,6.83008885]
[1772976242846,9.59761588,81.787,81.703,6.83008885]
[1772976243047,9.59761588,81.786,81.703,6.83008885]
[1772976243252,9.59761588,81.785,81.703,6.83008885]
[1772976243459,9.59761588,81.784,81.703,6.83008885]
[1772976243659,9.59761588,81.783,81.703,6.83008885]
[1772976243859,11.009,81.754,81.703,6.83008885]
[1772976247153,31.58717361,81.785,81.703,6.83008885]
[1772976247456,9.57717361,81.784,81.703,6.83008885]
[1772976247656,9.57717361,81.8,81.703,6.83008885]
[1772976247853,9.57717361,81.799,81.703,6.83008885]
[1772976248054,11.012,81.731,81.679,6.77750701]
[1772976248960,11.011,81.74,81.683,6.77734892]
[1772976249458,11.012,81.733,81.687,6.77620386]
[1772976250159,11.014,81.718,81.669,6.77620386]
[1772976252373,11.16993028,81.789,81.64,6.77940748]
[1772976252657,11.16993028,81.766,81.64,6.77940748]
[1772976252860,14.91851632,81.777,81.64,6.77940748]
[1772976252861,970.14786579,81.756,81.64,6.77940748]
[1772976253054,11.16993028,81.754,81.64,6.77940748]
[1772976253254,9.54746533,81.753,81.64,6.77940748]
[1772976253564,5.88528538,81.751,81.64,0.00040748]
[1772976253859,5.88528538,81.735,81.591,322.96760551]
[1772976254064,5.88528538,81.733,81.591,322.96760551]
[1772976254263,5.88528538,81.661,81.603,11.029]
[1772976255374,5.89057737,81.671,81.612,11.028]
[1772976255664,5.89057737,81.671,81.613,6.11757407]
[1772976256259,11.021,81.66,81.613,6.11757407]
[1772976256760,5.88428713,81.712,81.613,6.11757407]
[1772976257658,5.86568403,81.682,81.617,6.11757407]
[1772976258362,5.86568403,81.682,81.591,322.96760551]
[1772976258363,11.019,81.681,81.62,6.11757407]
[1772976258758,5.86568403,81.682,81.62,6.11757407]
[1772976259966,11.02,81.673,81.62,6.11757407]
[1772976260560,16.88368403,81.682,81.62,6.11757407]
[1772976260770,11.018,81.682,81.62,6.11757407]
[1772976261262,11.018,81.682,81.63,11.025]
[1772976261467,11.018,81.682,81.631,6.11757407]
[1772976262368,5.85996524,81.684,81.631,6.11757407]
[1772976262662,11.017,81.691,81.598,328.92050489]
[1772976262663,11.017,81.691,81.634,6.11757407]
[1772976262868,6.16671179,81.69,81.634,6.11757407]
[1772976263663,6.16325367,81.703,81.637,6.11757407]
[1772976264267,318.92569074,81.739,81.637,6.11757407]
[1772976264462,6.16325367,81.678,81.623,6.11757407]
[1772976265058,6.16325367,81.678,81.599,6.11757407]
[1772976265266,6.16325367,81.678,81.598,328.92050489]
[1772976265267,6.1604667,81.659,81.602,6.11757407]
[1772976265469,6.1604667,81.659,81.587,6.11757407]
[1772976266370,6.1516712,81.629,81.573,6.11757407]
[1772976266776,6.14896859,81.602,81.543,6.11757407]
[1772976267368,11.028,81.612,81.546,6.11757407]
[1772976267668,6.14896859,81.62,81.546,6.11757407]
[1772976268672,11.027,81.616,81.548,6.11757407]
[1772976269175,6.2500232,81.632,81.564,6.11757407]
[1772976269774,17.36470461,81.613,81.564,6.11757407]
[1772976269976,6.33670461,81.658,81.564,6.11757407]
[1772976270369,11.025,81.63,81.564,6.11757407]
[1772976270578,22.039,81.676,81.564,6.11757407]
[1772976270579,6.33670461,81.645,81.564,6.11757407]
[1772976271270,6.33670461,81.627,81.568,6.11757407]
[1772976271871,6.33670461,81.675,81.568,6.11757407]
[1772976272478,11.024,81.643,81.58,6.11757407]
[1772976272678,5.68163208,81.642,81.58,6.11757407]
[1772976273881,11.024,81.638,81.58,6.11757407]
[1772976274790,11.023,81.647,81.582,6.28919128]
[1772976275889,11.023,81.647,81.585,6.28919128]
[1772976277788,5.68163208,81.641,81.585,6.28919128]
[1772976278893,11.024,81.638,81.585,6.28919128]
[1772976279895,5.68163208,81.641,81.585,6.28919128]
[1772976280495,11.024,81.64,81.585,6.28919128]
[1772976284395,11.024,81.637,81.577,11.033]
[1772976284593,5.68163208,81.636,81.573,6.28919128]
[1772976286100,5.68163208,81.636,81.575,6.28919128]
[1772976287390,11.025,81.634,81.586,6.28919128]
[1772976287590,5.68163208,81.651,81.586,6.28919128]
[1772976288795,5.68163208,81.651,81.588,6.28919128]
[1772976290503,5.68163208,81.651,81.603,6.28919128]
[1772976290708,5.68163208,81.682,81.603,6.28919128]
[1772976291099,11.02,81.668,81.614,6.28919128]
[1772976291602,5.68163208,81.67,81.614,6.28919128]
[1772976292906,11.021,81.661,81.614,6.28919128]
[1772976295004,5.68163208,81.657,81.614,6.28919128]
[1772976295203,5.68163208,81.657,81.562,6.28919128]
[1772976295804,5.68163208,81.638,81.586,6.28919128]
[1772976296305,5.68163208,81.618,81.561,11.035]
[1772976296507,5.68163208,81.618,81.562,6.28919128]
[1772976297905,11.028,81.614,81.564,6.28919128]
[1772976299212,16.70963208,81.614,81.564,6.28919128]
[1772976300203,11.027,81.622,81.567,6.28919128]
[1772976300609,5.68163208,81.621,81.541,330.08083977]
[1772976300909,5.68163208,81.621,81.513,296.0]
[1772976300910,5.68163208,81.58,81.498,35.91237168]
[1772976301109,9.51956746,81.579,81.497,1.325e-05]
[1772976301307,11.043,81.504,81.497,1.325e-05]
[1772976301501,11.05343672,81.566,81.497,1.325e-05]
[1772976301701,9.51956746,81.565,81.497,1.325e-05]
[1772976301910,9.51956746,81.564,81.497,1.325e-05]
[1772976302108,20.57300418,81.563,81.408,35.89316602]
[1772976302306,171.706,81.539,81.384,35.89316602]
[1772976302502,11.05343672,81.542,81.384,35.89316602]
[1772976302503,11.05343672,81.527,81.384,35.89316602]
[1772976302713,171.721,81.532,81.349,35.89269753]
[1772976302714,11.05343672,81.511,81.349,35.89269753]
[1772976302910,9.51956746,81.514,81.355,35.89269753]
[1772976303203,171.733,81.526,81.355,35.89269753]
[1772976303405,11.052,81.432,81.355,35.89269753]
[1772976303714,171.847,81.472,81.327,2.13725737]
[1772976303910,11.059,81.386,81.327,2.13725737]
[1772976304108,195.96,81.483,81.297,36.32533274]
[1772976304411,195.96,81.483,81.327,36.32774357]
[1772976304613,208.5246131,81.483,81.327,36.32774357]
[1772976304813,9.38458917,81.482,81.327,36.32774357]
[1772976305007,9.38536202,81.482,81.33,36.32774357]
[1772976305207,171.838,81.476,81.294,36.32774357]
[1772976305406,9.35061607,81.475,81.294,36.32774357]
[1772976305702,9.35061607,81.482,81.294,36.32774357]
[1772976305906,171.856,81.468,81.294,36.32774357]
[1772976306109,11.057,81.397,81.294,36.32774357]
[1772976306302,171.864,81.464,81.294,31.80774357]
[1772976306502,171.856,81.468,81.294,31.80774357]
[1772976306503,9.35061607,81.463,81.294,31.80774357]
[1772976306703,9.35061607,81.467,81.294,31.80774357]
[1772976306903,9.35061607,81.467,81.293,16.02274788]
[1772976307103,9.35061607,81.482,81.293,16.02274788]
[1772976307815,208.5246131,81.483,81.293,16.02274788]
[1772976308210,208.5246131,81.483,81.34,34.35677408]
[1772976308715,208.5246131,81.483,81.294,34.35897444]
[1772976308911,9.41652052,81.482,81.294,34.35897444]
[1772976309310,208.5246131,81.483,81.294,34.35897444]
[1772976311415,196.26,81.501,81.294,34.35897444]
[1772976311615,196.26,81.502,81.294,34.35897444]
[1772976311810,11.05,81.446,81.342,34.44715161]
[1772976312116,196.26,81.502,81.342,34.44715161]
[1772976312715,11.05,81.447,81.343,34.44953668]
[1772976313309,208.36520783,81.502,81.343,34.44953668]
[1772976313705,171.79,81.499,81.343,34.44953668]
[1772976313910,22.087,81.498,81.343,34.44953668]
[1772976314114,171.802,81.493,81.321,34.47981949]
[1772976314515,22.091,81.482,81.321,34.47981949]